Cogmind - Beta 13 @@@ ROGUE MODE // 2024.06.04 @ 14:29:14 Player: Skergy Result: Destroyed by as-79024 with Assembled Heavy Rifle Performance ------------- Evolutions (0) 0 Regions Visited (4) 800 Robots Destroyed (15) 75 Value Destroyed (297) 297 Prototype IDs (3) 60 Alien Tech Used (0) 0 Bonus (385) 385 TOTAL SCORE: 1617 Bonus ------- Follower Combat Kills 85 Aligned with FarCom 300 Cogmind --------- Core Integrity 0/250 Matter 300/300 Energy 100/100 System Corruption 8% Temperature Cool (0) Movement Core (700) Ox13 Location -9/Mines Parts ------- > --- POWER (1) -------- (None) > --- PROPULSION (2) --- (None) > --- UTILITY (2) ------ High-capacity Storage Unit Signal Interpreter > --- WEAPON (2) ------- (None) > --- INVENTORY (20) --- Ion Engine Light Ion Engine Aluminum Leg Aluminum Leg Flight Unit Flight Unit Medium Battery (150) Seismic Detector Thief Drone Bay (3/3) Army-in-a-Box Particle Gun Assault Rifle Light Assault Rifle Datajack Mining Laser Peak State ------------ > --- POWER ------------ Light Nuclear Core > --- PROPULSION ------- Light Treads Light Treads > --- UTILITY ---------- Huge Storage Unit Signal Interpreter > --- WEAPON ----------- AWS/Gauss > --- INVENTORY -------- Ion Engine Ion Engine Light Ion Engine Light Ion Engine Light Ion Engine Aluminum Leg Aluminum Leg Aluminum Leg Flight Unit Flight Unit Small Storage Unit Medium Battery Sensor Array Seismic Detector Thief Drone Bay Medium Laser Particle Gun Assault Rifle Light Assault Rifle Light Assault Rifle Light Assault Rifle Datajack Mining Laser [Rating: 26] Favorites ----------- Power Light Nuclear Core Engine Ion Engine Power Core Light Nuclear Core Propulsion Light Treads Treads Light Treads Leg Aluminum Leg Utility Signal Interpreter Device Thief Drone Bay Storage Huge Storage Unit Processor Signal Interpreter Weapon Light Assault Rifle Energy Gun Medium Laser Energy Cannon Guided Plasma Cannon Ballistic Gun Light Assault Rifle Special Weapon Mining Laser Special Melee Weapon Datajack Build | -11 -10 -10 -10 -9 ------- Run | Yrd Mat Min Exi Min Slots Evolved . | . . . . . Power . | . . . . . Propulsion . | . . . . . Utility . | . . . . . Weapon . | . . . . . Parts Attached 31 | 7 5 8 10 1 Power 3 | 1 1 . 1 . Engine 2 | 1 . . 1 . Core 1 | . 1 . . . Reactor . | . . . . . Propulsion 7 | 3 3 . . 1 Treads 4 | 1 2 . . 1 Leg 3 | 2 1 . . . Wheel . | . . . . . Hover . | . . . . . Flight . | . . . . . Utility 8 | 1 1 4 2 . Device 2 | . . 2 . . Storage 5 | 1 . 2 2 . Processor 1 | . 1 . . . Hackware . | . . . . . Protection . | . . . . . Artifact . | . . . . . Weapon 13 | 2 . 4 7 . Energy Gun 2 | 1 . 1 . . Energy Cannon 1 | . . . 1 . Ballistic Gun 6 | 1 . 1 4 . Ballistic Cannon . | . . . . . Launcher . | . . . . . Special Weapon 3 | . . 2 1 . Impact Weapon . | . . . . . Slashing Weapon . | . . . . . Piercing Weapon . | . . . . . Special Melee Weapon 1 | . . . 1 . Unidentified Prototypes 3 | . . 1 2 . Parts Lost 5 | . . . . 5 Power 1 | . . . . 1 Propulsion 2 | . . . . 2 Utility . | . . . . . Weapon 2 | . . . . 2 Highest Loss Streak 5 | . . . . 5 To Critical Strikes . | . . . . . Average Slot Usage (%) 99 | . 94 100 99 98 Engine 6 | . 9 . 9 13 Core 7 | . 4 14 4 . Treads 26 | . 3 28 28 27 Leg 1 | . 24 . . . Storage 13 | . 14 13 13 14 Processor 13 | . 8 14 14 14 Energy Gun 7 | . 14 13 3 . Ballistic Gun 18 | . 14 13 21 27 Naked Turns . | . . . . . Heaviest Build 89 | 14 14 89 89 47 Greatest Support 40 | 20 40 40 40 40 Greatest Overweight (x) 13 | 1 . 2 2 13 Average Overweight (x) . | . . 1 . 1 Largest Inventory Capacity 25 | 8 8 25 25 20 Average Capacity 18 | 7 8 20 17 20 Most Carried 25 | 6 8 21 25 20 Average Carried 15 | 3 6 16 14 20 Final Capacity 25 | 8 8 25 20 20 Final Carried 21 | 6 8 21 20 20 Class Distribution -------------------- 100% | Mutant Dominant Class ---------------- Mutant | -10/Materials Mutant | -10/Mines Mutant | -10/Exiles Mutant | -9/Mines Resources | -11 -10 -10 -10 -9 ----------- Run | Yrd Mat Min Exi Min Matter Collected 689 | 239 165 161 90 34 Remotely . | . . . . . Salvage Created 464 | . 274 100 . 90 Parts 37 | . 22 12 . 3 Haulers Intercepted . | . . . . . Recyclers Shooed 4 | . 3 1 . . Parts Field Recycled . | . . . . . Retrieved Matter . | . . . . . Parts Self-Destructed . | . . . . . Prevented . | . . . . . Kills | -11 -10 -10 -10 -9 ------- Run | Yrd Mat Min Exi Min Combat Hostiles Destroyed 9 | . 3 4 . 2 Guns 9 | . 3 4 . 2 Classes Destroyed 8 | . 5 3 . . Worker 1 | . . 1 . . Builder 1 | . 1 . . . Tunneler 1 | . . 1 . . Recycler 1 | . 1 . . . Operator 1 | . 1 . . . Watcher 1 | . 1 . . . Swarmer 4 | . . 4 . . Grunt 5 | . 3 . . 2 Best Kill Streak 3 | . 3 3 . 2 Combat Bots Only 3 | . 3 3 . 2 Max Kills in Single Turn 2 | . 2 1 . 1 Gunslinging . | . . . . . Exploded . | . . . . . Melee . | . . . . . Uniques/NPCs Destroyed . | . . . . . Combat | -11 -10 -10 -10 -9 -------- Run | Yrd Mat Min Exi Min Hostile Shots Fired 103 | . 17 40 . 46 Missed 35 | . 4 18 . 13 Damage Taken 1005 | . 193 164 . 648 Core 267 | . 78 8 . 181 Absorbed by Shields . | . . . . . Core Remaining (%) 100 | 100 . . . . Volleys Fired 72 | . 28 33 1 10 Largest 2 | . 2 2 1 2 Hottest 100 | . 70 100 100 40 Shots Fired 116 | . 54 41 1 20 Gun 112 | . 54 38 . 20 Cannon . | . . . . . Launcher . | . . . . . Special 4 | . . 3 1 . Kinetic 75 | . 28 27 . 20 Thermal 41 | . 26 14 1 . Explosive . | . . . . . Electromagnetic . | . . . . . Robot Hit Streak 7 | . 4 4 . 7 Robot Miss Streak 10 | . 3 10 . 2 Penetration Max . | . . . . . Secondary Targets 2 | . 1 1 . . Max Gunslinging Chain 1 | . 1 1 . . Shots Hit Robots 59 | . 29 12 2 16 Core Hits 30 | . 13 6 . 11 Critical Kills . | . . . . . Critical Parts Destroyed . | . . . . . Critical Strikes . | . . . . . Melee Attacks 2 | . . . 2 . Impact . | . . . . . Slashing . | . . . . . Piercing . | . . . . . Sneak Attacks 2 | . . . 2 . Combat Hostiles . | . . . . . Follow-up Attacks . | . . . . . Damage Inflicted 902 | . 527 224 . 151 Guns 729 | . 374 224 . 131 Cannons . | . . . . . Explosions 153 | . 153 . . . Melee . | . . . . . Ramming 20 | . . . . 20 Kinetic 518 | . 238 149 . 131 Thermal 364 | . 289 75 . . Explosive . | . . . . . Electromagnetic . | . . . . . Impact . | . . . . . Slashing . | . . . . . Piercing . | . . . . . Highest Corruption 8 | . . . . 8 Average Corruption 7 | . . . . 7 Corruption Purged . | . . . . . Corruption Blocked . | . . . . . Overload Shots . | . . . . . Overflow Damage . | . . . . . Projectiles . | . . . . . Explosions . | . . . . . Melee . | . . . . . Knockbacks . | . . . . . Impact . | . . . . . Kinetic . | . . . . . Secondary . | . . . . . Self-Inflicted Damage 56 | . 56 . . . Shots 1 | . 1 . . . Rammed 9 | . . . . 9 Targets Rammed 9 | . . . . 9 Kicked . | . . . . . Crushed . | . . . . . Highest Temperature 120 | . 102 120 28 . Average Temperature 32 | . 26 42 16 . Received Heat Transfer 126 | . 57 . . 69 Siege Activations . | . . . . . Robots Corrupted . | . . . . . Combat Hostiles . | . . . . . Parts Fried . | . . . . . Impact Corruptions . | . . . . . Robots Melted . | . . . . . Combat Hostiles . | . . . . . Parts Melted . | . . . . . Heat Transferred 729 | . 507 222 . . Parts Sabotaged . | . . . . . Parts Stolen . | . . . . . Parts Stripped . | . . . . . Power Chain Reactions . | . . . . . Alert | -11 -10 -10 -10 -9 ------- Run | Yrd Mat Min Exi Min Peak Influence 166 | . 141 166 . 50 Initial 54 | . . 54 . . Average 34 | . 83 31 . 24 Maximum Alert Level . | . . . . . Low Security (%) 100 | 100 100 100 . 100 Level 1 . | . . . . . Level 2 . | . . . . . Level 3 . | . . . . . Level 4 . | . . . . . Level 5 . | . . . . . High Security . | . . . . . Max Security . | . . . . . Squads Dispatched 1 | . 1 . . . Investigation . | . . . . . Extermination . | . . . . . Reinforcement 1 | . 1 . . . Assault . | . . . . . Garrison . | . . . . . Intercept . | . . . . . Searches Triggered . | . . . . . Construction Impeded . | . . . . . Haulers Reinforced . | . . . . . Active Scanning Responses . | . . . . . Cargo Convoy Interrupts . | . . . . . Stealth | -11 -10 -10 -10 -9 --------- Run | Yrd Mat Min Exi Min Distress Signals 2 | . 2 . . . Communications Jammed . | . . . . . Distress Signals . | . . . . . Times Spotted 40 | . 12 8 . 20 Peak Tracking Total 18 | . 5 3 . 18 Tactical Retreats 1 | . . . . 1 Traps | -11 -10 -10 -10 -9 ------- Run | Yrd Mat Min Exi Min Traps Triggered . | . . . . . Indirectly . | . . . . . Trap Hack Attempts . | . . . . . Triggered . | . . . . . Disarmed . | . . . . . Reprogrammed . | . . . . . Reused . | . . . . . Traps Extracted . | . . . . . Installed . | . . . . . Triggered . | . . . . . Machines | -11 -10 -10 -10 -9 ---------- Run | Yrd Mat Min Exi Min Machines Disabled 1 | . 1 . . . Max in Single Turn 1 | . 1 . . . Machines Repaired . | . . . . . Machines Dismantled . | . . . . . Machines Sabotaged . | . . . . . Overloaded Fab Kills . | . . . . . Hacking | -11 -10 -10 -10 -9 --------- Run | Yrd Mat Min Exi Min Machines Accessed 4 | . 2 1 1 . Terminals 2 | . 2 . . . Fabricators . | . . . . . Repair Stations . | . . . . . Recycling Units . | . . . . . Scanalyzers . | . . . . . Garrison Access . | . . . . . Total Hacks 6 | . 4 1 1 . Successful 2 | . . 1 1 . Failed 4 | . 4 . . . Catastrophic 1 | . 1 . . . Database Lockouts . | . . . . . Manual 3 | . 2 . 1 . Terminals 4 | . 4 . . . Fabricators . | . . . . . Repair Stations . | . . . . . Recycling Units . | . . . . . Scanalyzers . | . . . . . Garrison Access . | . . . . . Terminal Hacks 2 | . . 1 1 . Record 1 | . . . 1 . Open Door 1 | . . 1 . . Fabricator Hacks . | . . . . . Repair Station Hacks . | . . . . . Recycling Unit Hacks . | . . . . . Scanalyzer . | . . . . . Garrison Access Hacks . | . . . . . Unauthorized Hacks . | . . . . . Terminals . | . . . . . Fabricators . | . . . . . Repair Stations . | . . . . . Recycling Units . | . . . . . Scanalyzers . | . . . . . Garrison Access . | . . . . . Data Cores Recovered . | . . . . . Used . | . . . . . Hacking Detections 2 | . 2 . . . Full Trace Events . | . . . . . Feedback Events . | . . . . . Feedback Blocked . | . . . . . Robot Schematics Acquired . | . . . . . Robots Built . | . . . . . Authchips . | . . . . . Time . | . . . . . Total Robot Build Rating . | . . . . . Part Schematics Acquired . | . . . . . Parts Built . | . . . . . Authchips . | . . . . . Time . | . . . . . Total Part Build Rating . | . . . . . Parts Repaired . | . . . . . Time . | . . . . . Parts Recycled . | . . . . . Recycled Matter . | . . . . . Retrieved Matter . | . . . . . Retrieved Components . | . . . . . Parts Scanalyzed . | . . . . . Part Schematics Acquired . | . . . . . Parts Damaged . | . . . . . Bothacking | -11 -10 -10 -10 -9 ------------ Run | Yrd Mat Min Exi Min Used RIF Installer . | . . . . . Robots Hacked . | . . . . . Non-combat . | . . . . . Combat . | . . . . . Robot Hacks Applied . | . . . . . Relay Couplers Released . | . . . . . Fabnet Peak Effective % . | . . . . . Robots Rewired . | . . . . . Allies Hacked . | . . . . . Hacks Repelled . | . . . . . Allies | -11 -10 -10 -10 -9 -------- Run | Yrd Mat Min Exi Min Total Allies 6 | . . 6 . . Largest Group 6 | . . 6 5 3 Highest-Rated Group 109 | . . 109 78 40 Highest-Rated Ally 31 | . . 31 31 16 Total Orders 1 | . . 1 . . EXPLORE 1 | . . 1 . . Ally Attacks 28 | . . 14 . 14 Total Damage 281 | . . 121 . 160 Kills 3 | . . 2 . 1 Allies Corrupted . | . . . . . Allies Melted . | . . . . . Intel | -11 -10 -10 -10 -9 ------- Run | Yrd Mat Min Exi Min Robot Analysis Total . | . . . . . Derelict Logs Recovered 1 | . . 1 . . Drone Launches 1 | . . 1 . . Drone Recoveries 1 | . . 1 . . Exploration | -11 -10 -10 -10 -9 ------------- Run | Yrd Mat Min Exi Min Turns Passed 3742 | 57 228 1374 1474 609 Spaces Moved 1455 | 33 106 442 647 227 Core 3 | 2 . . . 1 Treads 1342 | 8 19 442 647 226 Legs 110 | 23 87 . . . Wheels . | . . . . . Hover . | . . . . . Flight . | . . . . . Fastest Speed 50 | 50 120 160 160 240 Average Speed 231 | 127 127 275 220 242 Slowest Speed 700 | 190 160 320 320 700 Overloaded Moves . | . . . . . Propulsion Burnouts . | . . . . . Robots Hopped . | . . . . . Cave-ins Triggered . | . . . . . Exploration Rate (%) 52 | 3 26 98 89 45 Regions Visited 4 Branch Regions 3 Pre-discovered Areas 1 | . . 1 . . Known Exits Taken 3 | . 1 1 1 . Unknown Exits Taken 1 | 1 . . . . Scrap Searched 2 | . . 2 . . Spaces Dug 3 | . . 3 . . Terrain Destroyed 12 | . 9 3 . . Melee . | . . . . . Projectile 3 | . . 3 . . AOE 9 | . 9 . . . Terrain Rammed . | . . . . . Walls Destroyed . | . . . . . Machines Disabled . | . . . . . Actions | -11 -10 -10 -10 -9 --------- Run | Yrd Mat Min Exi Min Total 1700 | 45 145 552 700 258 Wait 60 | . 1 49 1 9 Move 1451 | 32 105 441 646 227 Hop . | . . . . . Pick Up 45 | 5 3 15 21 1 Fast Attach 16 | 7 1 2 5 1 Attach 2 | . . 1 1 . Detach 6 | 1 . 1 4 . Swap 13 | . 4 5 4 . Drop 21 | . 3 4 13 1 Fire 72 | . 28 33 1 10 Melee 2 | . . . 2 . Ram . | . . . . . Kick . | . . . . . Crush 9 | . . . . 9 Escape Stasis . | . . . . . Rewire 3 | . . 1 2 . Trap . | . . . . . Miscellaneous . | . . . . . Route ------- -11/Scrapyard -10/Materials -10/Mines (discovered 3 exits: *Mat x2 / *Exi) -10/Exiles -9/Mines History --------- Turn | Location | Event 2 | -11/Scrapyard | Met Revision 17 26 | -11/Scrapyard | Discovered new exit (range 16) 58 | -11/Scrapyard | Entered Materials 257 | -10/Materials | Discovered new exit (range 15) 285 | -10/Materials | Identified exit to Mines 286 | -10/Materials | Entered Mines 313 | -10/Mines | Build established: Mutant 332 | -10/Mines | Found the Drone Emporium 335 | -10/Mines | Learned Materials stockpile data 341 | -10/Mines | Found Prototype Device 341 | -10/Mines | Identified Thief Drone Bay 369 | -10/Mines | Discovered new exit (range 46) 648 | -10/Mines | Escorted by a lone wolf Derelict 1005 | -10/Mines | Assisted by bots powering up and referring to "LRC-V3" 1255 | -10/Mines | Discovered new exit (range 4) 1261 | -10/Mines | Identified exit to Materials 1515 | -10/Mines | Learned location of Storage (-8) 1613 | -10/Mines | Deemed a non-threat by the Exiles lab entrance 1616 | -10/Mines | Discovered new exit (range 5) 1626 | -10/Mines | Identified exit to Exiles 1660 | -10/Mines | Entered Exiles 1660 | -10/Exiles | Accompanied by 6 allies 1690 | -10/Exiles | Led the pair of lost Derelicts to a safe place 1734 | -10/Exiles | Met 8R-AWN 1795 | -10/Exiles | Met EX-HEX 1943 | -10/Exiles | Met EX-BIN 1982 | -10/Exiles | Aligned with FarCom system 1985 | -10/Exiles | Given EX-Vault access code 2072 | -10/Exiles | Opened EX-Vault 2086 | -10/Exiles | Found Prototype Ballistic Gun 2086 | -10/Exiles | Identified AWS/Gauss 2097 | -10/Exiles | Found Prototype Energy Cannon 2097 | -10/Exiles | Identified Gui. Plasma Cannon 2122 | -10/Exiles | Found Prototype Device 2175 | -10/Exiles | Warned to stay clear of 0b10 Research branches 2228 | -10/Exiles | Met EX-DEC 2315 | -10/Exiles | Visited The Gauntlet 3101 | -10/Exiles | Discovered new exit (range 10) 3117 | -10/Exiles | Identified exit to Mines 3134 | -10/Exiles | Left Exiles lab with Army-in-a-Box 3134 | -10/Exiles | Entered Mines 3134 | -9/Mines | Accompanied by 3 allies 3149 | -9/Mines | Met a Derelict bent on vengeance 3253 | -9/Mines | Lost 3 allies 3682 | -9/Mines | Assembled infested the area 3716 | -9/Mines | Core integrity fell below 50% 3743 | -9/Mines | Core integrity fell below 20% 3743 | -9/Mines | Destroyed by as-79024 with Assembled Heavy Rifle Last Messages --------------- 03696_ Slammed into T-07 Excavator. 03702_ T-07 Excavator destroyed. 03703_ as-92459 sneak attacks. 03708_ Slammed into U-05 Engineer. 03710_ Slammed into as-83176. 03712_ Slammed into as-77950. 03717_ Slammed into as-92459. 03722_ Lgt. Treads severed. 03724_ Slammed into as-92459. 03731_ Acquired Lgt. Treads. 03732_ Acquired 4 matter. 03732_ Lgt. Treads destroyed. 03732_ Lgt. Assault Rifle destroyed. 03735_ Lgt. Treads destroyed. 03735_ System corrupted by crushing effect (+2). 03736_ Lgt. Assault Rifle destroyed. 03736_ Ion Engine destroyed. 03736_ System corrupted by crushing effect (+4). 03736_ System corrupted by crushing effect (+2). 03736_ Knocked back. Map ----- +----------------------------------------------------+ | ????# #????????????????????????????????????????? | | ???## #?????????????????????????????????????????? | | ??## #?????????????????????????????????????????? | | ??# ##?????????????????????????????????????????? | | ??# ##?????????????????????????????????????????? | | ??# #??####???????????????????????????????????? | | ??# #### ##??????????????????????????????????? | | ??## ##= #??????????????????????????????????? | | ???### #??????????????????????????????????? | | ?????## ##??????????????????????????????????? | | ??????## #??????????? ???????????????????????? | | ???????# |#??????????? ??????????????????????? | | ???????# ##??????????# ??????????????????????? | | ???????# ! #?????????## ??????????????????????? | | ??????## %#?????????# ??????????????????????? | | ??????# #????????? #??????????????????????? | | ??????# #????????? #??????????????????????? | | ??????## ##?????????? #??????????????????????? | | ??????## ##??????????? #??????????????????????? | | ??????# #???????????? #??????????????????????? | | ??????# #????????????# !#??????????d?d?????????? | | ??????# ##????????????#=%##?????????????????????? | | ??????# #?????????????# = ??????????????????????# | | ????### #?????????????# #?????????????????????## | | ???## #?????????????# #?????????????????????# | | ???# ############### @#??????????###???????## | | ???# % %%%%*%a% aaa#???####??? #??????## | | ???# ############ ## #??## ##??# #?????## | | ???## ##????????## ##a #### #### #???### | | ???## ##??????## aa # #??## % %* | | ???# ###????# a ####### ####%* ## | | ???# #????# ####?????# [ ### | | ???# #???# ##????????### ######?# | | ???## #?# #???????????# #??????# | | ????# ##???????????#%######## | | ????# ## ####??#######???# % % | | ???? ##?# ##?????# #???# ######### | | ???# #??## #???????# ##### #???????? | | ???## ##???## ????????# #???????? | | ????#####?????# ????????# #######???????? | | ?????????????? #????????# #?????????????? | | ?????????????# ##?????????# #?????????????? | | ??????????????? #???????????# #?????????????? | | ?????????????????????????????#######?????????????? | | ?????????????????????????????????????????????????? | | ?????????????????????????????????????????????????? | | ?????????????????????????????????????????????????? | | ?????????????????????????????????????????????????? | | ?????????????????????????????????????????????????? | | ?????????????????????????????????????????????????? | +----------------------------------------------------+ Best States ------------- Heat Dissipation 25 Energy Generation 14 Energy Capacity 250 Matter Stores 300 Matter Capacity 300 Sight Range 16 Terrain Scan Density 10 Evasion (%) 55 Recoil Reduction 2 Item Schematics ----------------- None Robot Schematics ------------------ None Fabricated ------------ Nothing Alien Tech Used ----------------- None Achievements -------------- None Challenges ------------ None Game ------ Seed TacticalArcNullifier Manual? 0 Play Time 00:39:32 Cumulative 26.4 hours Start 2024.06.04 @ 13:30:14 End 2024.06.04 @ 14:29:14 Sessions 1 Manual Loads 0 Difficulty Rogue Special Mode None Game No. 24 Rogue 24 Adventurer 0 Explorer 0 Win Type - Total 0 Types 0/0/0/0/0/0/0/0/0 Lore% 21 Gallery% 30 Achievement% 26 Wizard Run 0 Options --------- Layout 0 ASCII 0 Keyboard 1 Movement Numpad Keybinds 0 Fullscreen 1 Font 24/Cog Map View 76x50 Zoom Use 0% Tactical HUD 1 Map Filters NONE Filters NONE Steam 1 RUN: 992edfc9-9058-4d5f-9163-755c513526a0